fUST/lending_fUST_20260204
["ID","MTS","AMOUNT","RATE_DAILY","PERIOD"]
[404484772,1770202268925,-35.16074649,0.00013821,2]
[404484773,1770202279617,201.2647333,0.00013273,2]
[404484774,1770202279757,500.0,0.00013273,2]
[404485286,1770202330604,500.0,0.00013273,2]
[404485287,1770202333156,500.0,0.00013273,2]
[404485288,1770202384161,500.0,0.00013273,2]
[404485289,1770202384826,-300.0,0.0001382,2]
[404485290,1770202401696,500.0,0.00013273,2]
[404485291,1770202451952,-300.0,0.0001382,2]
[404485292,1770202452306,500.0,0.00013273,2]
[404485293,1770202454406,500.0,0.00013273,2]
[404485294,1770202511417,-300.0,0.0001382,2]
[404485295,1770202513917,-180.0,0.0001382,2]
[404485296,1770202522665,500.0,0.00013273,2]
[404485297,1770202563866,500.0,0.00013273,2]
[404485298,1770202573206,625.73832203,0.00013273,2]
[404485299,1770202574627,488.83640179,0.00013273,2]
[404485300,1770202627355,500.0,0.00013273,2]
[404485301,1770202627841,402.44473517,0.00013273,2]
[404485302,1770202628129,500.0,0.00013273,2]
[404485303,1770202645032,500.0,0.00013273,2]
[404485304,1770202664863,1000.0,0.00013699,2]
[404485305,1770202685783,601.85539168,0.00013273,2]
[404485306,1770202697413,479.5,0.00039882,20]
[404485307,1770202699515,321.84912525,0.00039882,20]
[404485308,1770202700983,433.0,0.00039882,20]
[404485309,1770202704346,316.85079511,0.00039882,20]
[404485310,1770202704406,320.5,0.00039882,20]
[404485311,1770202712555,619.5,0.00039882,20]
[404485312,1770202743130,500.32906268,0.00013273,2]
[404485313,1770202746745,549.13042081,0.00013273,2]
[404485314,1770202749190,363.99157508,0.00039882,120]
[404485315,1770202749223,266.44383526,0.00039882,120]
[404485316,1770202749291,774.73143972,0.00039882,120]
[404485317,1770202749936,363.99157508,0.00039882,120]
[404485318,1770202749968,266.44383526,0.00039882,120]
[404485319,1770202750377,363.99157508,0.00039882,120]
[404485320,1770202750804,363.99157508,0.00039882,120]
[404485321,1770202750921,266.44383526,0.00039882,120]
[404485322,1770202751182,363.99157508,0.00039882,120]
[404485323,1770202751563,363.99157508,0.00039882,120]
[404485324,1770202752168,363.99157508,0.00039882,120]
[404485325,1770202752873,363.99157508,0.00039882,120]
[404485326,1770202753237,363.99157508,0.00039882,120]
[404485327,1770202753655,363.99157508,0.00039882,120]
[404485328,1770202754154,363.99157508,0.00039882,120]
[404485329,1770202754521,363.99157508,0.00039882,120]
[404485330,1770202754877,363.99157508,0.00039882,120]
[404485331,1770202755244,363.99157508,0.00039882,120]
[404485332,1770202803016,150.39964,0.00039873,60]
[404485333,1770202803122,198.0,0.00039873,30]
[404485334,1770202859001,283.669787,0.00039873,40]
[404485335,1770202863129,401.32607296,0.00013273,2]
[404485336,1770202866991,510.99448898,0.00013699,2]
[404485337,1770202869182,181.99578751,0.00039873,120]
[404485338,1770202983906,500.0,0.00013273,2]
[404485339,1770202987399,500.0,0.00013273,2]
[404485340,1770202989209,181.9957875,0.00039873,120]
[404485341,1770203078116,249.74746,0.00039871,120]
[404485342,1770203078481,249.74746,0.00039871,120]
[404485343,1770203078849,249.74746,0.00039871,120]
[404485344,1770203079145,249.74746,0.00039871,120]
[404485345,1770203079461,249.74746,0.00039871,120]
[404485346,1770203079801,249.74746,0.00039871,120]
[404485347,1770203080111,249.74746,0.00039871,120]
[404485348,1770203080391,249.74746,0.00039871,120]
[404485349,1770203080685,249.74746,0.00039871,120]
[404485350,1770203080969,249.74746,0.00039871,120]
[404485351,1770203081265,249.74746,0.00039871,120]
[404485352,1770203081845,249.74746,0.00039871,120]
[404485353,1770203082153,249.74746,0.00039871,120]
[404485354,1770203082535,249.74746,0.00039871,120]
[404485355,1770203082827,249.74746,0.00039871,120]
[404485356,1770203083159,249.74746,0.00039871,120]
[404485357,1770203083492,249.74746,0.00039871,120]
[404485358,1770203083936,249.74746,0.00039871,120]
[404485359,1770203084214,249.74746,0.00039871,120]
[404485360,1770203084510,249.747467,0.00039871,120]
[404485361,1770203158578,201.94780182,0.00039871,120]
[404485362,1770203169571,151.0,0.00039871,28]
[404485363,1770203169872,151.0,0.00039871,28]
[404485364,1770203170383,151.0,0.00039871,28]
[404485365,1770203170739,151.0,0.00039871,28]
[404485366,1770203171100,151.0,0.00039871,28]
[404485367,1770203171391,151.0,0.00039871,28]
[404485368,1770203171689,151.0,0.00039871,28]
[404485369,1770203172017,151.0,0.00039871,28]
[404485370,1770203172313,151.0,0.00039871,28]
[404485371,1770203172610,151.0,0.00039871,28]
[404485372,1770203172904,151.0,0.00039871,28]
[404485373,1770203173234,151.0,0.00039871,28]
[404485374,1770203173551,151.0,0.00039871,28]
[404485375,1770203173849,151.0,0.00039871,28]
[404485376,1770203174139,267.782052,0.00039871,28]
[404485377,1770203224046,285.89128994,0.00013273,2]
[404485378,1770203225982,284.441459,0.00039871,120]
[404485379,1770203226617,500.0,0.00013273,2]
[404485380,1770203237790,500.0,0.00013273,2]
[404485381,1770203258215,151.0,0.00039871,120]
[404485382,1770203258560,151.0,0.00039871,120]
[404485383,1770203258865,151.0,0.00039871,120]
[404485384,1770203259359,291.312354,0.00039871,120]
[404485385,1770203284597,500.0,0.00013273,2]
[404485386,1770203284694,500.0,0.00013273,2]
[404485387,1770203311881,151.0,0.00039871,120]
[404485388,1770203312197,151.0,0.00039871,120]
[404485389,1770203312490,151.0,0.00039871,120]
[404485390,1770203312800,151.0,0.00039871,120]
[404485391,1770203313272,151.0,0.00039871,120]
[404485392,1770203313619,151.0,0.00039871,120]
[404485393,1770203313924,151.0,0.00039871,120]
[404485394,1770203314220,151.0,0.00039871,120]
[404485395,1770203314547,151.0,0.00039871,120]
[404485396,1770203314858,151.0,0.00039871,120]
[404485397,1770203315148,151.0,0.00039871,120]
[404485398,1770203315475,151.0,0.00039871,120]
[404485399,1770203315786,151.0,0.00039871,120]
[404485400,1770203316087,151.0,0.00039871,120]
[404485401,1770203316379,151.0,0.00039871,120]
[404485402,1770203316678,151.0,0.00039871,120]
[404485403,1770203316979,151.0,0.00039871,120]
[404485404,1770203317282,211.819707,0.00039871,120]
[404485405,1770203344379,500.0,0.00013273,2]
[404485406,1770203344409,598.55870767,0.00013273,2]
[404485407,1770203344662,500.0,0.00013273,2]
[404485408,1770203348007,500.0,0.00013273,2]
[404485409,1770203348877,500.0,0.00013273,2]
[404485410,1770203358714,362.48379791,0.00013273,2]
[404485411,1770203359361,500.0,0.00013273,2]
[404485412,1770203374677,151.0,0.00039871,60]
[404485413,1770203374969,151.0,0.00039871,60]
[404485414,1770203375271,151.0,0.00039871,60]
[404485415,1770203375561,151.0,0.00039871,60]
[404485416,1770203375850,151.0,0.00039871,60]
[404485417,1770203376140,151.0,0.00039871,60]
[404485418,1770203376562,151.0,0.00039871,60]
[404485419,1770203376728,278.618451,0.00039871,60]
[404485420,1770203404533,500.0,0.00013273,2]
[404485421,1770203409091,531.99848987,0.00013699,2]
[404485422,1770203409638,219.09157975,0.00013273,2]
[404485423,1770203412017,152.56811827,0.00013273,2]
[404485424,1770203412486,301.03403789,0.00013699,2]
[404485425,1770203413054,495.11699804,0.00013273,2]
[404485426,1770203414867,300.0,0.00013699,2]
[404485438,1770203432470,-300.0,0.0001382,2]
[404485439,1770203432480,-300.0,0.0001382,2]
[404485440,1770203432489,-300.0,0.0001382,2]
[404485441,1770203432499,-1200.0,0.0001382,2]
[404485442,1770203432508,-300.0,0.0001382,2]
[404485443,1770203432518,-150.0,0.0001382,2]
[404485444,1770203432527,-15.10889737,0.00013821,2]
[404485445,1770203432539,-330.25242726,0.00013821,2]
[404485446,1770203432551,-4522.2766184,0.00013821,2]
[404485447,1770203432560,-1000.0,0.00013821,2]
[404485448,1770203432569,-449.78290204,0.00013821,2]
[404485449,1770203432579,-500.0,0.00013821,2]
[404485450,1770203432588,-375.85417524,0.00013821,2]
[404485451,1770203432596,-505.15392133,0.00013821,2]
[404485452,1770203432605,-360.76318497,0.00013821,2]
[404485453,1770203432615,-1000.0,0.00013821,2]
[404485454,1770203432624,-20097.83020608,0.0001409,2]
[404485455,1770203432633,-1118.98403551,0.00014368,2]
[404485456,1770203432642,-730.03666345,0.00014368,2]
[404485457,1770203432651,-1515.230148,0.00014569,2]
[404485458,1770203432660,-500.0,0.00014702,2]
[404485459,1770203432669,-500.0,0.00014793,2]
[404485460,1770203432678,-420.0,0.00015143,2]
[404485461,1770203432687,-1515.230148,0.00015182,2]
[404485462,1770203432696,-300.0,0.00015202,2]
[404485463,1770203432705,-1331.33,0.00015342,2]
[404485464,1770203432714,-331.31303503,0.00015378,2]
[404485465,1770203432724,-596.36346306,0.00015378,2]
[404485466,1770203432733,-167.6316716,0.00015493,2]
[404485467,1770203432742,-3138.149744,0.00015493,2]
[404485468,1770203432751,-250.0,0.00015542,2]
[404485469,1770203432760,-500.0,0.00015542,2]
[404485470,1770203432769,-250.0,0.00015542,2]
[404485471,1770203432778,-500.0,0.00015542,2]
[404485472,1770203432787,-500.0,0.00015542,2]
[404485473,1770203432796,-250.0,0.00015542,2]
[404485474,1770203432805,-500.0,0.00015542,2]
[404485475,1770203432814,-500.0,0.00015542,2]
[404485476,1770203432824,-250.0,0.00015542,2]
[404485477,1770203432833,-500.0,0.00015542,2]
[404485478,1770203432842,-500.0,0.00015542,2]
[404485479,1770203432851,-250.0,0.00015542,2]
[404485480,1770203432860,-500.0,0.00015542,2]
[404485481,1770203432868,-1000.0,0.00015542,2]
[404485482,1770203432878,-500.0,0.00015542,2]
[404485483,1770203432886,-250.0,0.00015542,2]
[404485484,1770203432896,-500.0,0.00015542,2]
[404485485,1770203432906,-1000.0,0.00015542,2]
[404485486,1770203432917,-500.0,0.00015542,2]
[404485487,1770203432927,-250.0,0.00015542,2]
[404485488,1770203432936,-500.0,0.00015542,2]
[404485489,1770203432946,-1000.0,0.00015542,2]
[404485490,1770203432956,-500.0,0.00015542,2]
[404485491,1770203432966,-250.0,0.00015542,2]
[404485492,1770203432975,-500.0,0.00015542,2]
[404485493,1770203432984,-1000.0,0.00015542,2]
[404485494,1770203432994,-343.65629787,0.00015542,2]
[404485495,1770203433004,-250.0,0.00015542,2]
[404485496,1770203433013,-500.0,0.00015542,2]
[404485497,1770203433023,-1000.0,0.00015542,2]
[404485498,1770203433032,-250.0,0.00015542,2]
[404485499,1770203433041,-1000.0,0.00015542,2]
[404485500,1770203433051,-500.0,0.00015542,2]
[404485501,1770203433060,-250.0,0.00015542,2]
[404485502,1770203433069,-1000.0,0.00015542,2]
[404485503,1770203433079,-250.0,0.00015542,2]
[404485504,1770203433088,-500.0,0.00015542,2]
[404485505,1770203433097,-1000.0,0.00015542,2]
[404485506,1770203433106,-250.0,0.00015542,2]
[404485507,1770203433115,-1000.0,0.00015542,2]
[404485508,1770203433124,-250.0,0.00015542,2]
[404485509,1770203433134,-209.40437684,0.00015542,2]
[404485510,1770203433143,-1000.0,0.00015542,2]
[404485511,1770203433152,-250.0,0.00015542,2]
[404485512,1770203433162,-217.15233878,0.00015542,2]
[404485513,1770203433171,-1000.0,0.00015542,2]
[404485514,1770203433180,-250.0,0.00015542,2]
[404485515,1770203433189,-225.18697532,0.00015542,2]
[404485516,1770203433198,-250.0,0.00015542,2]
[404485517,1770203433207,-233.51889341,0.00015542,2]
[404485518,1770203433215,-250.0,0.00015542,2]
[404485519,1770203433225,-242.15909246,0.00015542,2]
[404485520,1770203433234,-250.0,0.00015542,2]
[404485521,1770203433243,-251.11897888,0.00015542,2]
[404485522,1770203433252,-250.0,0.00015542,2]
[404485523,1770203433261,-198.35576266,0.00015542,2]
[404485524,1770203433270,-250.0,0.00015542,2]
[404485525,1770203433280,-250.0,0.00015542,2]
[404485526,1770203433290,-500.0,0.00015542,2]
[404485527,1770203433299,-500.0,0.00015542,2]
[404485528,1770203433309,-500.0,0.00015542,2]
[404485529,1770203433318,-500.0,0.00015542,2]
[404485530,1770203433327,-61627.77485579,0.00015551,2]
[404485531,1770203433339,-1578.9641383,0.00015551,2]
[404485532,1770203433350,-6751.7918968,0.00015551,2]
[404485533,1770203433361,-500.03326142,0.00015551,2]
[404485534,1770203433372,-2865.10168109,0.00015551,2]
[404485535,1770203433382,-629.79917085,0.00015559,2]
[404485536,1770203433469,-500.0,0.00014089,2]
[404485537,1770203433479,-500.0,0.00014089,2]
[404485538,1770203433488,-500.0,0.00014089,2]
[404485539,1770203433498,-500.0,0.00014089,2]
[404485540,1770203433507,-500.0,0.00014089,2]
[404485541,1770203433516,-500.0,0.00015542,2]
[404485542,1770203433526,-6651.81739584,0.00015559,2]
[404485543,1770203433536,-476.76638841,0.00015559,2]
[404485544,1770203433548,-2221.3362772,0.00015559,2]
[404485545,1770203435430,160.322787,0.00039871,120]
[404485573,1770203438635,-212.39063812,0.00014089,2]
[404485575,1770203438645,-174.53846086,0.00014089,2]
[404485577,1770203438654,-500.0,0.00014089,2]
[404485578,1770203438664,-500.0,0.00014089,2]
[404485579,1770203438674,-500.0,0.00014089,2]
[404485580,1770203438683,-500.0,0.00014089,2]
[404485581,1770203438693,-500.0,0.00014089,2]
[404485582,1770203438702,-500.0,0.00014089,2]
[404485583,1770203438711,-500.0,0.00014089,2]
[404485584,1770203438720,-500.0,0.00014089,2]
[404485585,1770203438730,-500.0,0.00014089,2]
[404485586,1770203438739,-463.96228059,0.00014089,2]
[404485587,1770203438749,-500.0,0.00014089,2]
[404485588,1770203438758,-500.0,0.00014089,2]
[404485589,1770203438768,-500.0,0.00014089,2]
[404485590,1770203438777,-500.0,0.00014089,2]
[404485591,1770203438786,-644.79288703,0.00014089,2]
[404485592,1770203438795,-500.0,0.00014089,2]
[404485593,1770203438804,-500.0,0.00015542,2]
[404485594,1770203438813,-500.0,0.00015542,2]
[404485595,1770203438823,-500.0,0.00015542,2]
[404485596,1770203438834,-500.0,0.00015542,2]
[404485597,1770203438843,-500.0,0.00015542,2]
[404485598,1770203438853,-500.0,0.00015542,2]
[404485599,1770203438862,-500.0,0.00015542,2]
[404485600,1770203438872,-500.0,0.00015542,2]
[404485601,1770203438883,-500.0,0.00015542,2]
[404485602,1770203438893,-500.0,0.00015542,2]
[404485603,1770203438902,-500.0,0.00015542,2]
[404485604,1770203438913,-20.2807677,0.00015559,2]
[404485605,1770203438925,-1515.230148,0.00015796,2]
[404485606,1770203438935,-177.0,0.0001582,2]
[404485607,1770203438945,-2742.30570938,0.00016,2]
[404485608,1770203438956,-1208.05,0.00016408,3]
[404485609,1770203438966,-604.02,0.00016408,3]
[404485610,1770203438975,-302.01,0.00016408,3]
[404485611,1770203438985,-151.01,0.00016408,3]
[404485612,1770203438994,-453.05,0.00016408,3]
[404485613,1770203439007,-1515.230148,0.00016409,2]
[404485614,1770203439016,-4832.19,0.00016418,3]
[404485615,1770203439026,-1520.67536391,0.00016418,3]
[404485646,1770203445213,-500.0,0.00015542,2]
[404485647,1770203445223,-500.0,0.00015542,2]
[404485648,1770203445232,-500.0,0.00015542,2]
[404485649,1770203445241,-500.0,0.00015542,2]
[404485650,1770203445250,-250.0,0.00015542,2]
[404485651,1770203445259,-500.0,0.00015542,2]
[404485652,1770203445268,-250.0,0.00015542,2]
[404485654,1770203445278,-500.0,0.00015542,2]
[404485655,1770203445287,-250.0,0.00015542,2]
[404485657,1770203445296,-250.0,0.00015542,2]
[404485659,1770203445306,-250.0,0.00015542,2]
[404485661,1770203445316,-250.0,0.00015542,2]
[404485663,1770203445325,-250.0,0.00015542,2]
[404485664,1770203445334,-895.42463609,0.00016418,3]
[404485665,1770203445343,-683.33016566,0.00016438,2]
[404485666,1770203445353,-683.33016566,0.00016438,2]
[404485667,1770203445363,-683.33016566,0.00016438,2]
[404485668,1770203445372,-683.33016566,0.00016438,2]
[404485669,1770203445381,-683.33016566,0.00016438,2]
[404485670,1770203445391,-683.33016566,0.00016438,2]
[404485671,1770203445400,-683.33016566,0.00016438,2]
[404485672,1770203445408,-683.33016566,0.00016438,2]
[404485673,1770203445418,-683.33016566,0.00016438,2]
[404485674,1770203445430,-683.33016566,0.00016438,2]
[404485675,1770203445439,-683.33016566,0.00016438,2]
[404485676,1770203445448,-683.33016566,0.00016438,2]
[404485677,1770203445458,-683.33016566,0.00016438,2]
[404485678,1770203445468,-683.33016566,0.00016438,2]
[404485679,1770203445477,-683.33016566,0.00016438,2]
[404485680,1770203445487,-683.33016566,0.00016438,2]
[404485681,1770203445496,-683.33016566,0.00016438,2]
[404485682,1770203445506,-683.33016566,0.00016438,2]
[404485683,1770203445515,-683.33016566,0.00016438,2]
[404485684,1770203445524,-683.33016566,0.00016438,2]
[404485685,1770203445534,-683.33016566,0.00016438,2]
[404485686,1770203445543,-683.33016566,0.00016438,2]
[404485687,1770203445552,-683.33016566,0.00016438,2]
[404485688,1770203445562,-683.33016566,0.00016438,2]
[404485689,1770203445572,-683.33016566,0.00016438,2]
[404485690,1770203445582,-683.33016566,0.00016438,2]
[404485691,1770203445591,-683.33016566,0.00016438,2]
[404485692,1770203445600,-683.33016566,0.00016438,2]
[404485693,1770203445609,-683.33016566,0.00016438,2]
[404485694,1770203445618,-683.33016566,0.00016438,2]
[404485695,1770203445628,-683.33016566,0.00016438,2]
[404485696,1770203445637,-683.33016566,0.00016438,2]
[404485697,1770203445646,-683.33016566,0.00016438,2]
[404485698,1770203445655,-683.33016566,0.00016438,2]
[404485699,1770203445664,-683.33016566,0.00016438,2]
[404485700,1770203445674,-683.33016566,0.00016438,2]
[404485701,1770203445684,-683.33016566,0.00016438,2]
[404485702,1770203445693,-683.33016566,0.00016438,2]
[404485703,1770203445702,-683.33016566,0.00016438,2]
[404485704,1770203445711,-683.33016566,0.00016438,2]
[404485705,1770203445720,-683.33016566,0.00016438,2]
[404485706,1770203445729,-683.33016566,0.00016438,2]
[404485707,1770203445738,-683.33016566,0.00016438,2]
[404485708,1770203445747,-683.33016566,0.00016438,2]
[404485709,1770203445756,-683.33016566,0.00016438,2]
[404485710,1770203445765,-683.33016566,0.00016438,2]
[404485711,1770203445774,-683.33016566,0.00016438,2]
[404485712,1770203445783,-683.33016566,0.00016438,2]
[404485713,1770203445792,-683.33016566,0.00016438,2]
[404485714,1770203445801,-683.33016566,0.00016438,2]
[404485715,1770203445810,-557.01622353,0.00016438,2]
[404485726,1770203446963,-250.0,0.00015542,2]
[404485727,1770203446973,-250.0,0.00015542,2]
[404485728,1770203446982,-250.0,0.00015542,2]
[404485729,1770203446991,-150.0,0.0001598,2]
[404485730,1770203447002,-126.31394213,0.00016438,2]
[404485731,1770203447011,-683.33016566,0.00016438,2]
[404485732,1770203447020,-683.33016566,0.00016438,2]
[404485733,1770203447028,-683.33016566,0.00016438,2]
[404485734,1770203447038,-683.33016566,0.00016438,2]
[404485735,1770203447047,-151.0,0.00016438,2]
[404485736,1770203447056,-151.0,0.00016438,2]
[404485737,1770203447065,-151.0,0.00016438,2]
[404485738,1770203447074,-150.0,0.00016438,2]
[404485739,1770203447084,-200.0,0.00016438,3]
[404485740,1770203447092,-200.0,0.00016438,3]
[404485741,1770203447102,-200.0,0.00016438,3]
[404485742,1770203447111,-200.0,0.00016438,3]
[404485743,1770203447120,-200.0,0.00016438,3]
[404485744,1770203447129,-200.0,0.00016438,3]
[404485745,1770203447138,-1714.00427384,0.00016489,2]
[404485746,1770203473711,151.0,0.00039871,120]
[404485747,1770203474062,151.0,0.00039871,120]
[404485748,1770203474383,274.394976,0.00039871,120]
[404485749,1770203480791,488.01390527,0.00013699,2]
[404485751,1770203527240,212.27337714,0.00013699,2]
[404485752,1770203622035,151.0,0.00039871,90]
[404485753,1770203622334,151.0,0.00039871,90]
[404485754,1770203622657,151.0,0.00039871,90]
[404485755,1770203626948,284.658522,0.00039871,90]
[404485756,1770203813510,1692.31,0.00013699,2]
[404485758,1770204465888,251.74848131,0.00039852,30]
[404485759,1770204471409,321.61800612,0.00039852,60]
[404485761,1770204478038,1025.72737103,0.00039852,35]
[404485762,1770204504500,818.79469805,0.00039852,120]
[404485763,1770204519645,197.47795496,0.00039852,30]
[404485764,1770204519791,280.45319451,0.00039852,30]
[404485765,1770204520249,275.47982255,0.00039852,33]
[404485783,1770204631789,-177.096334,0.00015081,2]
[404485784,1770204631799,-150.0,0.00015497,2]
[404485785,1770204631808,-245.52644211,0.00015988,2]
[404485790,1770204637992,-54.47355789,0.00015988,2]
[404485791,1770204638002,-500.0,0.00015989,2]
[404485792,1770204638011,-500.0,0.00015989,2]
[404485793,1770204638022,-218.21803118,0.00015989,2]
[404485794,1770204638032,-155.20711297,0.00015989,2]
[404485795,1770204638042,-500.0,0.00015989,2]
[404485796,1770204638051,-355.67711317,0.00015989,2]
[404485797,1770204638061,-500.0,0.00015989,2]
[404485798,1770204638071,-500.0,0.00015989,2]
[404485799,1770204638081,-100000.0,0.0001599,2]
[404485800,1770204638091,-1211.30886522,0.00016059,2]
[404485801,1770204638101,-20050.75341419,0.00016059,2]
[404485802,1770204638110,-272.09142186,0.00016159,2]
[404485803,1770204638123,-1211.30886519,0.00016219,2]
[404485804,1770204638132,-1211.30886519,0.0001638,2]
[404485805,1770204638142,-168.0,0.00016412,2]
[404485806,1770204638151,-3171.12,0.00016428,3]
[404485807,1770204638161,-1585.56,0.00016428,3]
[404485808,1770204638170,-792.78,0.00016428,3]
[404485809,1770204638180,-396.39,0.00016428,3]
[404485810,1770204638190,-198.2,0.00016428,3]
[404485811,1770204638199,-594.61,0.00016428,3]
[404485812,1770204638209,-899.04706268,0.00016438,2]
[404485813,1770204638219,-899.04706268,0.00016438,2]
[404485814,1770204638229,-899.04706268,0.00016438,2]
[404485815,1770204638239,-899.04706268,0.00016438,2]
[404485816,1770204638248,-899.04706268,0.00016438,2]
[404485817,1770204638257,-899.04706268,0.00016438,2]
[404485818,1770204638266,-899.04706268,0.00016438,2]
[404485819,1770204638277,-899.04706268,0.00016438,2]
[404485820,1770204638288,-899.04706268,0.00016438,2]
[404485821,1770204638298,-899.04706268,0.00016438,2]
[404485822,1770204638307,-899.04706268,0.00016438,2]
[404485823,1770204638318,-899.04706268,0.00016438,2]
[404485824,1770204638330,-899.04706268,0.00016438,2]
[404485825,1770204638340,-899.04706268,0.00016438,2]
[404485826,1770204638349,-899.04706268,0.00016438,2]
[404485827,1770204638358,-899.04706268,0.00016438,2]
[404485828,1770204638367,-899.04706268,0.00016438,2]
[404485829,1770204638377,-899.04706268,0.00016438,2]
[404485830,1770204638386,-899.04706268,0.00016438,2]
[404485831,1770204638395,-899.04706268,0.00016438,2]
[404485832,1770204638405,-899.04706268,0.00016438,2]
[404485833,1770204638416,-899.04706268,0.00016438,2]
[404485834,1770204638426,-899.04706268,0.00016438,2]
[404485835,1770204638436,-899.04706268,0.00016438,2]
[404485836,1770204638445,-899.04706268,0.00016438,2]
[404485837,1770204638455,-899.04706268,0.00016438,2]
[404485838,1770204638467,-899.04706268,0.00016438,2]
[404485839,1770204638477,-899.04706268,0.00016438,2]
[404485840,1770204638487,-899.04706268,0.00016438,2]
[404485841,1770204638496,-899.04706268,0.00016438,2]
[404485842,1770204638506,-899.04706268,0.00016438,2]
[404485843,1770204638515,-899.04706268,0.00016438,2]
[404485844,1770204638526,-899.04706268,0.00016438,2]
[404485845,1770204638535,-899.04706268,0.00016438,2]
[404485846,1770204638546,-899.04706268,0.00016438,2]
[404485847,1770204638556,-899.04706268,0.00016438,2]
[404485848,1770204638565,-899.04706268,0.00016438,2]
[404485849,1770204638574,-899.04706268,0.00016438,2]
[404485850,1770204638584,-899.04706268,0.00016438,2]
[404485851,1770204638593,-899.04706268,0.00016438,2]
[404485852,1770204638602,-899.04706268,0.00016438,2]
[404485853,1770204638612,-899.04706268,0.00016438,2]
[404485854,1770204638622,-899.04706268,0.00016438,2]
[404485855,1770204638631,-899.04706268,0.00016438,2]
[404485856,1770204638641,-899.04706268,0.00016438,2]
[404485857,1770204638650,-899.04706268,0.00016438,2]
[404485858,1770204638660,-899.04706268,0.00016438,2]
[404485859,1770204638669,-899.04706268,0.00016438,2]
[404485860,1770204638679,-899.04706268,0.00016438,2]
[404485861,1770204638689,-899.04706268,0.00016438,2]
[404485862,1770204638699,-899.04706268,0.00016438,2]
[404485863,1770204638708,-899.04706268,0.00016438,2]
[404485864,1770204638719,-899.04706268,0.00016438,2]
[404485865,1770204638729,-899.04706268,0.00016438,2]
[404485866,1770204638739,-899.04706268,0.00016438,2]
[404485867,1770204638749,-899.04706268,0.00016438,2]
[404485868,1770204638758,-899.04706268,0.00016438,2]
[404485869,1770204638769,-899.04706268,0.00016438,2]
[404485870,1770204638779,-899.04706268,0.00016438,2]
[404485871,1770204638789,-899.04706268,0.00016438,2]
[404485872,1770204638799,-899.04706268,0.00016438,2]
[404485873,1770204638809,-899.04706267,0.00016438,2]
[404485874,1770204638820,-899.04706268,0.00016438,2]
[404485875,1770204638829,-899.04706268,0.00016438,2]
[404485876,1770204638839,-899.04706268,0.00016438,2]
[404485877,1770204638848,-876.57088609,0.00016438,2]
[404485878,1770204638858,-876.57088609,0.00016438,2]
[404485879,1770204638867,-876.57088609,0.00016438,2]
[404485880,1770204638876,-876.57088609,0.00016438,2]
[404485881,1770204638887,-876.57088609,0.00016438,2]
[404485882,1770204638903,-876.57088609,0.00016438,2]
[404485883,1770204638917,-876.57088609,0.00016438,2]
[404485884,1770204638930,-876.57088609,0.00016438,2]
[404485885,1770204638941,-876.57088609,0.00016438,2]
[404485886,1770204638953,-876.57088609,0.00016438,2]
[404485887,1770204638967,-876.57088609,0.00016438,2]
[404485888,1770204638979,-876.57088609,0.00016438,2]
[404485889,1770204638991,-876.57088609,0.00016438,2]
[404485890,1770204639003,-876.57088609,0.00016438,2]
[404485891,1770204639016,-876.57088609,0.00016438,2]